fUSD/lending_fUSD_20250602
["ID","MTS","AMOUNT","RATE_DAILY","PERIOD"]
[363808536,1748881444891,-500.0,0.00041095,120]
[363808537,1748881444916,-3123.86,0.00041096,120]
[363808538,1748881444940,-274.27,0.00041096,120]
[363808539,1748881444968,-734.6187511,0.000411,120]
[363808540,1748881444992,-734.6187511,0.000411,120]
[363808541,1748881445017,-734.6187511,0.000411,120]
[363808542,1748881445041,-734.6187511,0.000411,120]
[363808543,1748881445066,-734.6187511,0.000411,120]
[363808544,1748881445091,-734.6187511,0.000411,120]
[363808545,1748881445123,-734.6187511,0.000411,120]
[363808546,1748881445154,-734.6187511,0.000411,120]
[363808547,1748881445182,-734.6187511,0.000411,120]
[363808548,1748881445211,-734.6187511,0.000411,120]
[363808549,1748881445238,-734.6187511,0.000411,120]
[363808550,1748881445266,-734.6187511,0.000411,120]
[363808551,1748881445292,-734.6187511,0.000411,120]
[363808552,1748881445317,-734.6187511,0.000411,120]
[363808553,1748881445343,-734.6187511,0.000411,120]
[363808554,1748881445370,-734.6187511,0.000411,120]
[363808555,1748881445630,-734.6187511,0.000411,120]
[363808556,1748881445659,-734.6187511,0.000411,120]
[363808557,1748881445686,-734.6187511,0.000411,120]
[363808558,1748881445713,-734.61,0.000411,120]
[363808559,1748881445741,-1714.11041924,0.000411,120]
[363808560,1748881445768,-1714.11041924,0.000411,120]
[363808561,1748881445795,-1714.11041924,0.000411,120]
[363808562,1748881445822,-1714.11041924,0.000411,120]
[363808563,1748881445850,-1714.11041924,0.000411,120]
[363808564,1748881445878,-1714.11041924,0.000411,120]
[363808565,1748881445907,-1714.11041924,0.000411,120]
[363808566,1748881445941,-1714.11041924,0.000411,120]
[363808567,1748881445971,-1714.11041924,0.000411,120]
[363808568,1748881446000,-1714.11041924,0.000411,120]
[363808569,1748881446028,-1714.11041924,0.000411,120]
[363808570,1748881446056,-1714.11041924,0.000411,120]
[363808571,1748881446088,-1714.11041924,0.000411,120]
[363808572,1748881446118,-1714.11041924,0.000411,120]
[363808573,1748881446146,-1714.11041924,0.000411,120]
[363808574,1748881446173,-1714.11041924,0.000411,120]
[363808575,1748881446202,-1714.11041924,0.000411,120]
[363808576,1748881446228,-1714.11041924,0.000411,120]
[363808577,1748881446255,-1714.11041924,0.000411,120]
[363808578,1748881446281,-1714.11,0.000411,120]
[363808579,1748881446314,-876.86153796,0.000411,120]
[363808580,1748881446343,-876.86153796,0.000411,120]
[363808581,1748881446372,-876.86153796,0.000411,120]
[363808582,1748881446399,-876.86153796,0.000411,120]
[363808583,1748881446426,-876.86153796,0.000411,120]
[363808584,1748881446452,-876.86153796,0.000411,120]
[363808585,1748881446479,-876.86153796,0.000411,120]
[363808586,1748881446505,-876.86153796,0.000411,120]
[363808587,1748881446531,-876.86153796,0.000411,120]
[363808588,1748881446558,-876.86153796,0.000411,120]
[363808589,1748881446588,-876.86153796,0.000411,120]
[363808590,1748881446617,-876.86153796,0.000411,120]
[363808591,1748881446649,-876.86153796,0.000411,120]
[363808592,1748881446676,-876.86153796,0.000411,120]
[363808593,1748881446703,-876.86153796,0.000411,120]
[363808594,1748881446731,-876.86153796,0.000411,120]
[363808595,1748881446758,-876.86153796,0.000411,120]
[363808596,1748881446785,-876.86153796,0.000411,120]
[363808597,1748881446811,-876.86153796,0.000411,120]
[363808598,1748881446838,-876.86,0.000411,120]
[363808599,1748881446870,-2046.01025524,0.000411,120]
[363808600,1748881446896,-2046.01025524,0.000411,120]
[363808601,1748881446923,-2046.01025524,0.000411,120]
[363808602,1748881446950,-2046.01025524,0.000411,120]
[363808603,1748881446977,-2046.01025524,0.000411,120]
[363808604,1748881447004,-2046.01025524,0.000411,120]
[363808605,1748881447032,-2046.01025524,0.000411,120]
[363808606,1748881447060,-2046.01025524,0.000411,120]
[363808607,1748881447087,-2046.01025524,0.000411,120]
[363808608,1748881447115,-2046.01025524,0.000411,120]
[363808609,1748881447145,-2046.01025524,0.000411,120]
[363808610,1748881447172,-2046.01025524,0.000411,120]
[363808611,1748881447200,-2046.01025524,0.000411,120]
[363808612,1748881447229,-2046.01025524,0.000411,120]
[363808613,1748881447256,-2046.01025524,0.000411,120]
[363808614,1748881447283,-2046.01025524,0.000411,120]
[363808615,1748881447314,-2046.01025524,0.000411,120]
[363808616,1748881447341,-2046.01025524,0.000411,120]
[363808617,1748881447368,-2046.01025524,0.000411,120]
[363808618,1748881447395,-2046.01,0.000411,120]
[363808619,1748881447421,-489.94392549,0.000411,120]
[363808620,1748881447448,-489.94392549,0.000411,120]
[363808621,1748881447476,-489.94392549,0.000411,120]
[363808622,1748881447503,-489.94392549,0.000411,120]
[363808623,1748881447530,-489.94392549,0.000411,120]
[363808624,1748881447557,-489.94392549,0.000411,120]
[363808625,1748881447584,-489.94392549,0.000411,120]
[363808626,1748881447612,-489.94392549,0.000411,120]
[363808627,1748881447638,-489.94392549,0.000411,120]
[363808628,1748881447668,-489.94392549,0.000411,120]
[363808629,1748881447694,-489.94392549,0.000411,120]
[363808630,1748881447734,-489.94392549,0.000411,120]
[363808631,1748881447775,-489.94392549,0.000411,120]
[363808632,1748881447801,-489.94392549,0.000411,120]
[363808633,1748881447826,-489.94392549,0.000411,120]
[363808634,1748881447852,-489.94392549,0.000411,120]
[363808635,1748881447881,-489.94392549,0.000411,120]
[363808636,1748881447919,-489.94392549,0.000411,120]
[363808637,1748881447949,-489.94392549,0.000411,120]
[363808638,1748881447999,-489.94,0.000411,120]
[363808639,1748881448036,-1143.20249282,0.000411,120]
[363808640,1748881448066,-1143.20249282,0.000411,120]
[363808641,1748881448092,-1143.20249282,0.000411,120]
[363808642,1748881448120,-1143.20249282,0.000411,120]
[363808643,1748881448149,-1143.20249282,0.000411,120]
[363808644,1748881448182,-1143.20249282,0.000411,120]
[363808645,1748881448218,-1143.20249282,0.000411,120]
[363808646,1748881448252,-1143.20249282,0.000411,120]
[363808647,1748881448281,-1143.20249282,0.000411,120]
[363808648,1748881448315,-1143.20249282,0.000411,120]
[363808649,1748881448342,-1143.20249282,0.000411,120]
[363808650,1748881448369,-1143.20249282,0.000411,120]
[363808651,1748881448396,-1143.20249282,0.000411,120]
[363808652,1748881448422,-1143.20249282,0.000411,120]
[363808653,1748881448447,-1143.20249282,0.000411,120]
[363808654,1748881448473,-1143.20249282,0.000411,120]
[363808655,1748881448498,-1143.20249282,0.000411,120]
[363808656,1748881448522,-1143.20249282,0.000411,120]
[363808657,1748881448548,-1143.20249282,0.000411,120]
[363808658,1748881448573,-1143.2,0.000411,120]
[363808659,1748881448792,-160.0,0.000412,120]
[363808660,1748881448818,-169.0,0.000412,120]
[363808661,1748881448845,-150.0,0.00041223,120]
[363808662,1748881448871,-150.0,0.00041264,120]
[363808663,1748881448897,-2867.13,0.00041369,120]
[363808664,1748881448924,-583.87,0.00041369,120]
[363808665,1748881448950,-500.0,0.00041369,120]
[363808666,1748881448974,-721.42,0.00041397,120]
[363808667,1748881448999,-721.42,0.00041397,120]
[363808668,1748881449023,-721.42,0.00041397,120]
[363808669,1748881449048,-721.42,0.00041397,120]
[363808670,1748881449072,-721.42,0.00041397,120]
[363808671,1748881449096,-721.42,0.00041397,120]
[363808672,1748881449124,-721.42,0.00041397,120]
[363808673,1748881449149,-721.42,0.00041397,120]
[363808674,1748881449174,-721.42,0.00041397,120]
[363808675,1748881449199,-721.42,0.00041397,120]
[363808676,1748881449224,-721.42,0.00041397,120]
[363808677,1748881449250,-721.42,0.00041397,120]
[363808678,1748881449275,-721.42,0.00041397,120]
[363808679,1748881449300,-721.42,0.00041397,120]
[363808680,1748881449326,-721.42,0.00041397,120]
[363808681,1748881449353,-721.42,0.00041397,120]
[363808682,1748881449380,-721.42,0.00041397,120]
[363808683,1748881449406,-721.42,0.00041397,120]
[363808684,1748881449432,-721.42,0.00041397,120]
[363808685,1748881449456,-721.42,0.00041397,120]
[363808686,1748881449481,-721.42,0.00041397,120]
[363808687,1748881449508,-721.42,0.00041397,120]
[363808688,1748881449532,-721.42,0.00041397,120]
[363808689,1748881449556,-721.45,0.00041397,120]
[363808690,1748881449582,-150.0,0.00041493,120]
[363808691,1748881449609,-150.0,0.00041511,120]
[363808692,1748881449638,-150.0,0.000416,120]
[363808693,1748881449668,-150.0,0.00041641,120]
[363808694,1748881449695,-2867.13,0.00041643,120]
[363808695,1748881449725,-583.87,0.00041643,120]
[363808696,1748881449751,-263.39612295,0.00041643,120]
[363808697,1748881449778,-1035.99977486,0.000417,120]
[363808698,1748881449805,-2867.13,0.00041917,120]
[363808699,1748881449835,-583.87,0.00041917,120]
[363808700,1748881449862,-300.0,0.00042,120]
[363808701,1748881449889,-727.8479612,0.00042,120]
[363808702,1748881449914,-312.99108477,0.00042,120]
[363808703,1748881449941,-651.41913956,0.00042121,120]
[363808704,1748881449966,-2867.13,0.00042191,120]
[363808705,1748881449993,-583.87,0.00042191,120]
[363808706,1748881450018,-630.14,0.00042417,120]
[363808707,1748881450045,-2867.13,0.00042465,120]
[363808708,1748881450072,-583.87,0.00042465,120]
[363808709,1748881450099,-150.0,0.000427,120]
[363808710,1748881450127,-2867.13,0.00042739,120]
[363808711,1748881450154,-583.87,0.00042739,120]
[363808712,1748881450181,-2851.55916373,0.00043,120]
[363808713,1748881450206,-535.34401187,0.00043,120]
[363808714,1748881450233,-206.83507247,0.00043,120]
[363808715,1748881450258,-388.3232281,0.00043,120]
[363808716,1748881450286,-200.0,0.00043,120]
[363808717,1748881450314,-2703.35,0.00043,120]
[363808718,1748881450340,-1535.42,0.00043,120]
[363808719,1748881450368,-2867.13,0.00043013,120]
[363808720,1748881450402,-583.87,0.00043013,120]
[363808721,1748881450428,-3014.6701452,0.0004313,120]
[363808722,1748881450455,-2867.13,0.00043287,120]
[363808723,1748881450485,-583.87,0.00043287,120]
[363808724,1748881450514,-609.43221462,0.000435,120]
[363808725,1748881450540,-2867.13,0.00043561,120]
[363808726,1748881450570,-583.87,0.00043561,120]
[363808727,1748881450596,-2640.32,0.000436,120]
[363808728,1748881450622,-515.76,0.000436,120]
[363808729,1748881450652,-630.14,0.00043787,120]
[363808730,1748881450678,-232.89898632,0.000438,120]
[363808731,1748881450703,-458.46,0.000438,120]
[363808732,1748881450733,-150.0,0.000438,120]
[363808733,1748881450760,-2867.13,0.00043835,120]
[363808734,1748881450788,-583.87,0.00043835,120]
[363808735,1748881450814,-1443.24,0.00043859,120]
[363808736,1748881450841,-1018.19683894,0.00044,120]
[363808737,1748881450864,-3222.44519349,0.00044,120]
[363808738,1748881450890,-451.74027318,0.00044,120]
[363808739,1748881450918,-529.01,0.00044,120]
[363808740,1748881450944,-23549.0,0.00044,120]
[363808741,1748881450970,-2867.13,0.00044109,120]
[363808742,1748881450998,-583.87,0.00044109,120]
[363808743,1748881451024,-2867.13,0.00044383,120]
[363808744,1748881451052,-583.87,0.00044383,120]
[363808745,1748881451082,-1591.59092217,0.000445,120]
[363808746,1748881451107,-2971.39551402,0.000445,120]
[363808747,1748881451137,-384.38006955,0.000445,120]
[363808748,1748881451164,-2867.13,0.00044657,120]
[363808749,1748881451194,-583.87,0.00044657,120]
[363808750,1748881451220,-238.87751886,0.00044798,120]
[363808751,1748881451245,-1427.06785567,0.00044798,120]
[363808752,1748881451272,-150.0,0.000449,120]
[363808753,1748881451300,-10000.0,0.000449,120]
[363808754,1748881451327,-2867.13,0.00044931,120]
[363808755,1748881451357,-583.87,0.00044931,120]
[363808756,1748881451387,-246.10924555,0.00045,120]
[363808757,1748881451415,-168.00001377,0.00045,120]
[363808758,1748881451442,-1457.25527911,0.00045,120]
[363808759,1748881451469,-3308.6161413,0.00045,120]
[363808760,1748881451494,-343.87073932,0.00045,120]
[363808761,1748881451520,-50000.0,0.00045,120]
[363808762,1748881451546,-48290.78349357,0.00045,120]
[363808763,1748881451748,-19454.94097985,0.00045,120]
[363808764,1748881451774,-1084.11840743,0.00045,120]
[363808765,1748881451800,-40000.0,0.00045,120]
[363808766,1748881451829,-29000.0,0.00045,120]
[363808767,1748881451860,-2221.16662863,0.00045,120]
[363808768,1748881451897,-1105.98980715,0.00045,120]
[363808769,1748881451926,-800.0,0.00045,120]
[363808770,1748881451954,-165.39539106,0.00045,120]
[363808771,1748881451990,-280.0,0.00045,120]
[363808772,1748881452024,-5000.0,0.00045,120]
[363808773,1748881452055,-630.14,0.00045156,120]
[363808774,1748881452086,-2867.13,0.00045205,120]
[363808775,1748881452121,-583.87,0.00045205,120]
[363808776,1748881452152,-2867.13,0.00045479,120]
[363808777,1748881452183,-583.87,0.00045479,120]
[363808778,1748881452213,-861.43606615,0.000455,120]
[363808779,1748881452248,-1130.9765588,0.000457,120]
[363808780,1748881452278,-2867.13,0.00045753,120]
[363808781,1748881452309,-583.87,0.00045753,120]
[363808782,1748881452337,-2694.81072544,0.000458,120]
[363808783,1748881452369,-3175.14222874,0.0004588,120]
[363808784,1748881452397,-20000.0,0.000459,120]
[363808785,1748881452426,-150.0,0.00046,120]
[363808786,1748881452454,-442.99760543,0.00046,120]
[363808787,1748881452482,-2703.63076986,0.00046,120]
[363808788,1748881452509,-3274.11721017,0.00046,120]
[363808789,1748881452546,-40000.0,0.00046,120]
[363808790,1748881452576,-2867.13,0.00046027,120]
[363808791,1748881452608,-583.87,0.00046027,120]
[363808792,1748881452639,-5000000.0,0.0004618,120]
[363808793,1748881452672,-307.85303037,0.00046243,120]
[363808794,1748881452701,-224.88050613,0.00046261,120]
[363808795,1748881452728,-2867.13,0.00046301,120]
[363808796,1748881452758,-583.87,0.00046301,120]
[363808797,1748881452785,-437.1566542,0.00046306,120]
[363808798,1748881452812,-200.0,0.00046328,120]
[363808799,1748881452840,-437.1566542,0.00046331,120]
[363808800,1748881452869,-307.85303037,0.00046337,120]
[363808801,1748881452896,-200.0,0.00046337,120]
[363808802,1748881452925,-351.43593393,0.00046364,120]
[363808803,1748881452955,-224.88050613,0.00046366,120]
[363808804,1748881452984,-307.85303037,0.00046366,120]
[363808805,1748881453011,-351.43593393,0.00046375,120]
[363808806,1748881453041,-224.88050613,0.00046376,120]
[363808807,1748881453068,-307.85303037,0.00046376,120]
[363808808,1748881453098,-923.55909112,0.00046386,120]
[363808809,1748881453133,-923.55909112,0.00046387,120]
[363808810,1748881453162,-923.55909112,0.00046392,120]
[363808811,1748881453190,-224.88050613,0.00046394,120]
[363808812,1748881453218,-428.76982701,0.000464,120]
[363808813,1748881453244,-351.43593393,0.00046421,120]
[363808814,1748881453272,-437.1566542,0.00046421,120]
[363808815,1748881453299,-437.1566542,0.00046446,120]
[363808816,1748881453326,-923.55909112,0.00046456,120]
[363808817,1748881453353,-351.43593393,0.00046462,120]
[363808818,1748881453384,-630.14,0.00046526,120]
[363808819,1748881453411,-518.5,0.00046574,120]
[363808820,1748881453442,-300.0,0.00046574,120]
[363808821,1748881453471,-500.0,0.00046574,120]
[363808822,1748881453496,-300.0,0.00046574,120]
[363808823,1748881453522,-151.0,0.00046574,120]
[363808824,1748881453547,-1037.0,0.00046574,120]
[363808825,1748881453573,-300.0,0.00046574,120]
[363808826,1748881453599,-200.0,0.00046574,120]
[363808827,1748881453628,-2867.13,0.00046575,120]
[363808828,1748881453659,-583.87,0.00046575,120]
[363808829,1748881453687,-378.45832,0.000467,120]
[363808830,1748881453714,-210.25462,0.000467,120]
[363808831,1748881453742,-150.0,0.000467,120]
[363808832,1748881453768,-2867.13,0.00046849,120]
[363808833,1748881453799,-583.87,0.00046849,120]
[363808834,1748881453827,-20000.0,0.000469,120]
[363808835,1748881453854,-434.0,0.00046986,120]
[363808836,1748881453883,-2000.0,0.0004699,120]
[363808837,1748881453911,-1000.0,0.00046999,120]
[363808838,1748881453937,-500.0,0.00047,120]
[363808839,1748881453964,-5000.0,0.00047,120]
[363808840,1748881453989,-325.95624681,0.00047,120]
[363808841,1748881454016,-3674.0,0.00047,120]
[363808842,1748881454045,-3437.2,0.00047,120]
[363808843,1748881454072,-150.0,0.000471,120]
[363808844,1748881454100,-2867.13,0.00047123,120]
[363808845,1748881454148,-583.87,0.00047123,120]
[363808846,1748881454178,-2867.34753925,0.00047397,120]
[363808847,1748881454210,-583.91632341,0.00047397,120]
[363808848,1748881454237,-249295.37801312,0.000474,120]
[363808849,1748881460324,-300.0,0.00046574,120]
[363808850,1748881460350,-151.0,0.00046574,120]
[363808851,1748881460377,-300.0,0.00046574,120]
[363808852,1748881460404,-500.0,0.00046574,120]
[363808853,1748881460430,-518.5,0.00046574,120]
[363808854,1748881460459,-250704.62198688,0.000474,120]
[363808855,1748881460485,-160.0,0.000474,120]
[363808856,1748881460514,-169.0,0.000474,120]
[363808857,1748881460538,-1450.97211587,0.000475,120]
[363808858,1748881460563,-2500.0,0.000475,120]
[363808859,1748881460588,-200.0,0.00047574,120]
[363808860,1748881460614,-378.45832,0.000478,120]
[363808861,1748881460639,-210.25462,0.000478,120]
[363808862,1748881460668,-151.2731,0.000478,120]
[363808863,1748881460694,-630.14,0.00047896,120]
[363808864,1748881460719,-20000.0,0.000479,120]
[363808865,1748881460747,-1625.01260112,0.0004799,120]
[363808866,1748881460772,-5000.0,0.0004799,120]
[363808867,1748881460796,-2000.0,0.0004799,120]
[363808868,1748881460823,-1000.0,0.00048,120]
[363808869,1748881460848,-60822.47434081,0.00048,120]
[363808870,1748881460891,-43174.39440736,0.00048,120]
[363808871,1748881460924,-5000.0,0.00048,120]
[363808872,1748881460951,-800.0,0.00048,120]
[363808873,1748881460977,-10000.0,0.00048,120]
[363808874,1748881461002,-262680.92912503,0.00048,120]
[363808875,1748881461030,-500.0,0.00048,120]
[363808876,1748881461054,-137519.61938295,0.00048,120]
[363808877,1748881461290,-40000.0,0.00048,120]
[363808878,1748881461316,-5601.29715869,0.00048,120]
[363808879,1748881461341,-23984.0,0.00048,120]
[363808880,1748881461366,-3274.11721017,0.00048,120]
[363808881,1748881461393,-150.0,0.000482,120]
[363808882,1748881461419,-1349.5419925,0.00048309,120]
[363808883,1748881461444,-3969.18289946,0.00048343,120]
[363808884,1748881461469,-409.58730793,0.00048356,120]
[363808885,1748881461497,-1000.0,0.000484,120]
[363808886,1748881461521,-22158.21004093,0.000485,120]
[363808887,1748881461548,-2262.0,0.000485,120]
[363808888,1748881461573,-200.0,0.00048574,120]
[363808889,1748881461599,-3038.89129145,0.000488,120]
[363808890,1748881461625,-156608.83443254,0.000488,120]
[363808891,1748881461652,-472.48887876,0.0004888,120]
[363808892,1748881461681,-1200.32448552,0.000489,120]
[363808893,1748881461709,-20000.0,0.000489,120]
[363808894,1748881461736,-378.45832,0.000489,120]
[363808895,1748881461763,-210.25462,0.000489,120]
[363808896,1748881461788,-2199.15230301,0.000489,120]
[363808897,1748881461814,-2000.0,0.0004899,120]
[363808898,1748881461840,-2040.24833096,0.0004899,120]
[363808899,1748881461866,-1000.0,0.00048999,120]
[363808900,1748881461904,-21806.70799579,0.00049,120]
[363808901,1748881461933,-10000.0,0.00049,120]
[363808902,1748881461960,-52856.41233555,0.00049,120]
[363808903,1748881461986,-5273.14455,0.00049,120]
[363808904,1748881462013,-175604.40753492,0.00049,120]
[363808905,1748881462041,-3674.0,0.00049,120]
[363808906,1748881462068,-932.0,0.00049015,120]
[363808907,1748881462095,-932.0,0.00049015,120]
[363808908,1748881462121,-932.0,0.00049015,120]
[363808909,1748881462151,-932.0,0.00049015,120]
[363808910,1748881462179,-932.0,0.00049015,120]
[363808911,1748881462206,-932.0,0.00049015,120]
[363808912,1748881462234,-932.0,0.00049015,120]
[363808913,1748881462261,-932.0,0.00049015,120]
[363808914,1748881462289,-932.0,0.00049015,120]
[363808915,1748881462316,-932.0,0.00049015,120]
[363808916,1748881462343,-932.0,0.00049015,120]
[363808917,1748881462370,-932.0,0.00049015,120]
[363808918,1748881462400,-932.0,0.00049015,120]
[363808919,1748881462426,-932.0,0.00049015,120]
[363808920,1748881462453,-932.0,0.00049015,120]
[363808921,1748881462479,-932.0,0.00049015,120]
[363808922,1748881462504,-932.0,0.00049015,120]
[363808923,1748881462531,-932.0,0.00049015,120]
[363808924,1748881462558,-932.0,0.00049015,120]
[363808925,1748881462587,-932.0,0.00049015,120]
[363808926,1748881462614,-932.0,0.00049015,120]
[363808927,1748881462640,-932.0,0.00049015,120]
[363808928,1748881462668,-932.0,0.00049015,120]
[363808929,1748881462692,-943.58298596,0.00049015,120]
[363808930,1748881462718,-222.05229456,0.00049015,120]
[363808931,1748881462746,-150.0,0.00049015,120]
[363808932,1748881462772,-150.0,0.00049015,120]
[363808933,1748881462798,-150.0,0.00049015,120]
[363808934,1748881462824,-150.0,0.00049015,120]
[363808935,1748881462850,-150.0,0.00049015,120]
[363808936,1748881462876,-209.31924171,0.00049015,120]
[363808937,1748881462902,-630.14,0.00049266,120]
[363808938,1748881462928,-256.11079,0.000493,120]
[363808939,1748881462954,-10000.0,0.0004931,120]
[363808940,1748881462980,-500.0,0.00049315,120]
[363808941,1748881463006,-1000.0,0.00049315,120]
[363808942,1748881463093,300.0,0.00049315,120]
[363808943,1748881463266,371.22426504,0.00049315,120]
[363808944,1748881463526,468.91907476,0.00049315,120]
[363808945,1748881463636,200.0,0.00049315,120]
[363808946,1748881464088,207.4,0.00049315,120]
[363808947,1748881465107,215.0738,0.00049315,120]
[363808948,1748881465348,223.0315306,0.00049315,120]
[363808949,1748881466007,231.28369723,0.00049315,120]
[363808950,1748881466406,9890.85,0.000464,120]
[363808951,1748881466465,1000.0,0.00049315,120]
[363808952,1748881466599,151.41701202,0.00049315,120]
[363808953,1748881466635,239.84119403,0.00049315,120]
[363808954,1748881467086,1037.0,0.00049315,120]
[363808955,1748881467257,248.71531821,0.00049315,120]
[363808956,1748881467705,1075.369,0.00049315,120]
[363808957,1748881468322,1115.157653,0.00049315,120]
[363808958,1748881468397,257.91778498,0.00049315,120]
[363808959,1748881468952,1156.41848616,0.00049315,120]
[363808960,1748881469064,267.46074303,0.00049315,120]
[363808961,1748881469410,3301.45358553,0.00049,120]
[363808962,1748881469596,858.78942931,0.00049315,120]
[363808963,1748881469700,277.35679052,0.00049315,120]
[363808964,1748881469908,150.0,0.00049015,120]
[363808965,1748881470325,287.61899177,0.00049315,120]
[363808966,1748881470793,200.0,0.00049015,120]
[363808967,1748881470947,298.26089446,0.00049315,120]
[363808968,1748881471305,150.0,0.00038248,120]
[363808969,1748881471584,309.29654756,0.00049315,120]
[363808970,1748881472321,9873.98,0.000464,120]
[363808971,1748881472356,150.0,0.00049015,120]
[363808972,1748881472388,320.74051982,0.00049315,120]
[363808973,1748881472431,150.0,0.00049015,120]
[363808974,1748881472549,200.0,0.00049015,120]
[363808975,1748881473434,332.60791905,0.00049315,120]
[363808976,1748881474077,344.91441206,0.00049315,120]
[363808977,1748881474699,357.6762453,0.00049315,120]
[363808978,1748881474791,150.0,0.00049015,120]
[363808979,1748881474979,200.0,0.00049015,120]
[363808980,1748881475618,370.91026638,0.00049315,120]
[363808981,1748881476020,384.63394623,0.00049315,120]
[363808982,1748881476276,500.0,0.00049015,120]
[363808983,1748881476442,500.0,0.00049015,120]
[363808984,1748881476627,217.65058881,0.00049015,120]
[363808985,1748881476690,398.86540225,0.00049315,120]
[363808986,1748881477613,150.0,0.00049015,120]
[363808987,1748881477782,150.0,0.00049015,120]
[363808988,1748881477858,10109.58,0.00048315,120]
[363808989,1748881477947,150.0,0.00049015,120]
[363808990,1748881478332,150.0,0.00049015,120]
[363808991,1748881478364,300.0,0.00049315,120]
[363808992,1748881478510,150.0,0.00049015,120]
[363808993,1748881478684,150.0,0.00049015,120]
[363808994,1748881478892,150.0,0.00049015,120]
[363808995,1748881479079,150.0,0.00049015,120]
[363808996,1748881479247,150.0,0.00049015,120]
[363808997,1748881479419,150.0,0.00049015,120]
[363808998,1748881479607,150.0,0.00049015,120]
[363808999,1748881479782,150.0,0.00049015,120]
[363809000,1748881480020,150.0,0.00049015,120]
[363809001,1748881480479,150.0,0.00049015,120]
[363809002,1748881480946,150.0,0.00049015,120]
[363809003,1748881481183,230.31232275,0.00049015,120]
[363809004,1748881482810,150.0,0.00049015,120]
[363809005,1748881483025,150.0,0.00049015,120]
[363809006,1748881483379,150.0,0.00049015,120]
[363809007,1748881483561,150.0,0.00049015,120]
[363809008,1748881483731,150.0,0.00049015,120]
[363809009,1748881483763,10125.59,0.00048315,120]
[363809010,1748881484130,250.0,0.00049015,120]
[363809011,1748881565332,1000.0,0.0004109,120]
[363809013,1748881575729,167.46,0.00018578,2]
[363809016,1748881591566,150.0,0.00038868,120]
[363809017,1748881599801,150.0,0.00018578,2]
[363809018,1748881611237,21984.47,0.00018578,2]
[363809022,1748881640504,3301.45358553,0.00041,120]
[363809023,1748881650713,150.0,0.0003932,120]
[363809024,1748881653171,300.0,0.00041,120]
[363809030,1748881661962,300.0,0.00041,120]
[363809031,1748881669380,300.0,0.00041,120]
[363809032,1748881672289,238.28873315,0.00041,120]
[363809033,1748881675224,964.09489354,0.0003,120]
[363809034,1748881681388,1044.71373043,0.00036,120]
[363809035,1748881683182,2729.3773045,0.00034,120]
[363809036,1748881685528,235.23216841,0.00027397,120]
[363809037,1748881695015,1614.0,0.00041,120]
[363809044,1748881703650,1500.0,0.00041,120]
[363809046,1748881707836,984.46248556,0.0004,120]
[363809047,1748881710493,150.0,0.00037638,120]
[363809048,1748881712068,3048.69313203,0.0002739,120]
[363809049,1748881712601,696.19,0.00018522,2]
[363809050,1748881712759,174.21352055,0.00037999,120]
[363809051,1748881712891,506.43024478,0.0003,120]
[363809052,1748881713508,608.96680237,0.0003,120]
[363809053,1748881716808,530.699999,0.000151,2]